fUSD/lending_fUSD_20240116
["ID","MTS","AMOUNT","RATE_DAILY","PERIOD"]
[311814760,1705428649468,-500.0,0.00030865,2]
[311814761,1705428649478,-500.0,0.00030865,2]
[311814762,1705428649488,-500.0,0.00030865,2]
[311814763,1705428649498,-500.0,0.00030865,2]
[311814764,1705428649508,-500.0,0.00030865,2]
[311814765,1705428649517,-500.0,0.00030865,2]
[311814766,1705428649527,-500.0,0.00030865,2]
[311814767,1705428649539,-500.0,0.00030865,2]
[311814768,1705428649550,-500.0,0.00030865,2]
[311814769,1705428649559,-500.0,0.00030865,2]
[311814770,1705428649570,-500.0,0.00030865,2]
[311814771,1705428649581,-500.0,0.00030865,2]
[311814772,1705428649592,-500.0,0.00030865,2]
[311814773,1705428649603,-500.0,0.00030865,2]
[311814774,1705428649616,-500.0,0.00030865,2]
[311814775,1705428649626,-500.0,0.00030865,2]
[311814776,1705428649637,-500.0,0.00030865,2]
[311814777,1705428649646,-500.0,0.00030865,2]
[311814778,1705428649656,-500.0,0.00030865,2]
[311814779,1705428649666,-500.0,0.00030865,2]
[311814780,1705428649677,-500.0,0.00030865,2]
[311814781,1705428649688,-500.0,0.00030865,2]
[311814782,1705428649698,-500.0,0.00030865,2]
[311814783,1705428649707,-500.0,0.00030865,2]
[311814784,1705428649717,-500.0,0.00030865,2]
[311814785,1705428649727,-500.0,0.00030865,2]
[311814786,1705428649736,-500.0,0.00030865,2]
[311814787,1705428649746,-500.0,0.00030865,2]
[311814788,1705428649755,-500.0,0.00030865,2]
[311814789,1705428649765,-500.0,0.00030865,2]
[311814790,1705428649774,-500.0,0.00030865,2]
[311814791,1705428649783,-500.0,0.00030865,2]
[311814792,1705428649793,-500.0,0.00030865,2]
[311814793,1705428649802,-500.0,0.00030865,2]
[311814794,1705428649812,-500.0,0.00030865,2]
[311814795,1705428649821,-500.0,0.00030865,2]
[311814796,1705428649831,-500.0,0.00030865,2]
[311814797,1705428649840,-500.0,0.00030865,2]
[311814798,1705428649851,-500.0,0.00030865,2]
[311814799,1705428649862,-500.0,0.00030865,2]
[311814800,1705428649873,-500.0,0.00030865,2]
[311814801,1705428649884,-500.0,0.00030865,2]
[311814802,1705428649894,-500.0,0.00030865,2]
[311814803,1705428649905,-500.0,0.00030865,2]
[311814804,1705428649915,-500.0,0.00030865,2]
[311814805,1705428649926,-500.0,0.00030865,2]
[311814806,1705428649935,-500.0,0.00030865,2]
[311814807,1705428649949,-500.0,0.00030865,2]
[311814808,1705428649959,-500.0,0.00030865,2]
[311814809,1705428649971,-500.0,0.00030865,2]
[311814810,1705428649982,-500.0,0.00030865,2]
[311814811,1705428649992,-500.0,0.00030865,2]
[311814812,1705428650002,-317.22,0.00030962,2]
[311814813,1705428650013,-200.0,0.00030987,3]
[311814814,1705428650024,-500.0,0.00030997,2]
[311814815,1705428650034,-500.0,0.00030997,2]
[311814816,1705428650044,-500.0,0.00030997,2]
[311814817,1705428650053,-500.0,0.00030997,2]
[311814818,1705428650063,-500.0,0.00030997,2]
[311814819,1705428650072,-500.0,0.00030997,2]
[311814820,1705428650081,-500.0,0.00030997,2]
[311814821,1705428650090,-500.0,0.00030997,2]
[311814822,1705428650100,-500.0,0.00030997,2]
[311814823,1705428650110,-500.0,0.00030997,2]
[311814824,1705428650119,-500.0,0.00030997,2]
[311814825,1705428650129,-500.0,0.00030997,2]
[311814826,1705428650139,-500.0,0.00030997,2]
[311814827,1705428650149,-500.0,0.00030997,2]
[311814828,1705428650159,-500.0,0.00030997,2]
[311814829,1705428650169,-500.0,0.00030997,2]
[311814830,1705428650179,-500.0,0.00030997,2]
[311814831,1705428650188,-500.0,0.00030997,2]
[311814832,1705428650198,-500.0,0.00030997,2]
[311814833,1705428650207,-500.0,0.00030997,2]
[311814834,1705428650216,-500.0,0.00030997,2]
[311814835,1705428650226,-500.0,0.00030997,2]
[311814836,1705428650235,-500.0,0.00030997,2]
[311814837,1705428650245,-500.0,0.00030997,2]
[311814838,1705428650254,-500.0,0.00030997,2]
[311814839,1705428650264,-500.0,0.00030997,2]
[311814840,1705428650273,-500.0,0.00030997,2]
[311814841,1705428650283,-2500.0,0.00031,10]
[311814842,1705428650292,-1400.0,0.00031,3]
[311814843,1705428650302,-153.84,0.0003105,2]
[311814844,1705428650311,-166.78265795,0.0003109,7]
[311814845,1705428650320,-200.0,0.000311,2]
[311814846,1705428650330,-500.0,0.000311,2]
[311814847,1705428650340,-500.0,0.000311,2]
[311814848,1705428650349,-500.0,0.000311,2]
[311814849,1705428650359,-500.0,0.000311,2]
[311814850,1705428650368,-500.0,0.000311,2]
[311814851,1705428650377,-500.0,0.000311,2]
[311814852,1705428650386,-500.0,0.000311,2]
[311814853,1705428650395,-500.0,0.000311,2]
[311814854,1705428650405,-500.0,0.000311,2]
[311814855,1705428650415,-500.0,0.000311,2]
[311814856,1705428650424,-500.0,0.000311,2]
[311814857,1705428650434,-500.0,0.000311,2]
[311814858,1705428650443,-500.0,0.000311,2]
[311814859,1705428650453,-500.0,0.000311,2]
[311814860,1705428650462,-500.0,0.000311,2]
[311814861,1705428650472,-500.0,0.000311,2]
[311814862,1705428650482,-500.0,0.000311,2]
[311814863,1705428650492,-500.0,0.000311,2]
[311814864,1705428650501,-500.0,0.000311,2]
[311814865,1705428650511,-500.0,0.000311,2]
[311814866,1705428650521,-500.0,0.000311,2]
[311814867,1705428650530,-500.0,0.000311,2]
[311814868,1705428650539,-500.0,0.000311,2]
[311814869,1705428650548,-401.07444326,0.000311,2]
[311814870,1705428651623,-98.92555674,0.000311,2]
[311814871,1705428651633,-500.0,0.000311,2]
[311814872,1705428651643,-500.0,0.000311,2]
[311814873,1705428651652,-500.0,0.000311,2]
[311814874,1705428651661,-356.07248826,0.000311,2]
[311814875,1705428651706,-1849.00057355,0.00022898,2]
[311814876,1705428651715,-336.32780692,0.000229,2]
[311814877,1705428651725,-143.92751174,0.000311,2]
[311814878,1705428651735,-500.0,0.000311,2]
[311814879,1705428651744,-500.0,0.000311,2]
[311814880,1705428651754,-500.0,0.000311,2]
[311814881,1705428651762,-500.0,0.000311,2]
[311814882,1705428651772,-500.0,0.000311,2]
[311814883,1705428651781,-500.0,0.000311,2]
[311814884,1705428651790,-500.0,0.000311,2]
[311814885,1705428651799,-500.0,0.000311,2]
[311814886,1705428651808,-500.0,0.000311,2]
[311814887,1705428651818,-500.0,0.000311,2]
[311814888,1705428651827,-500.0,0.000311,2]
[311814889,1705428651837,-500.0,0.000311,2]
[311814890,1705428651846,-500.0,0.000311,2]
[311814891,1705428651856,-500.0,0.000311,2]
[311814892,1705428651865,-500.0,0.000311,2]
[311814893,1705428651874,-500.0,0.000311,2]
[311814894,1705428651883,-500.0,0.000311,2]
[311814895,1705428651893,-500.0,0.000311,2]
[311814896,1705428651903,-500.0,0.000311,2]
[311814897,1705428651912,-500.0,0.000311,2]
[311814898,1705428651922,-500.0,0.000311,2]
[311814899,1705428651932,-500.0,0.000311,2]
[311814900,1705428651945,-500.0,0.000311,2]
[311814901,1705428651955,-500.0,0.000311,2]
[311814902,1705428651964,-500.0,0.000311,2]
[311814903,1705428651974,-882.08850652,0.000311,2]
[311814904,1705428651984,-150.0,0.00031158,2]
[311814905,1705428651993,-1009.508,0.00031194,2]
[311814906,1705428652004,-1000.0,0.00031232,2]
[311814907,1705428652013,-158.02,0.000313,2]
[311814908,1705428652024,-158.02,0.000313,2]
[311814909,1705428652034,-270.43,0.00031311,2]
[311814910,1705428652043,-2000.8,0.0003135,2]
[311814911,1705428652052,-154.60621965,0.00031373,7]
[311814912,1705428652062,-8000.0,0.000315,2]
[311814913,1705428652071,-788.98,0.00031507,2]
[311814914,1705428652081,-155.0,0.00031507,2]
[311814915,1705428652090,-197.4,0.00031644,2]
[311814916,1705428652099,-1000.0,0.00031667,2]
[311814917,1705428652109,-156.65733675,0.000317,2]
[311814918,1705428652119,-154.60621965,0.00031791,7]
[311814919,1705428652128,-12236.62782523,0.000318,3]
[311814920,1705428652140,-375.31267016,0.000318,3]
[311814928,1705429046114,168.16348616,5e-05,2]
[311814929,1705429056955,6082.51022323,5e-05,2]
[311814930,1705429058640,544.11161391,0.000145,2]
[311814931,1705429064805,283.13155322,5e-05,2]
[311814932,1705429066872,155.0,5e-05,2]
[311814933,1705429067588,15701.67485694,5e-05,2]
[311814934,1705429069336,284.18685088,5e-05,2]
[311814935,1705429072426,155.0,0.0002,2]
[311814936,1705429072457,155.0,5e-05,2]
[311814937,1705429072898,292.05499422,5e-05,2]
[311814938,1705429075163,544.11161391,0.000145,2]
[311814939,1705429075312,6082.51022323,5e-05,2]
[311814940,1705429075362,155.0,5e-05,2]
[311814941,1705429078756,2474.83010861,0.0002,2]
[311814942,1705429079986,155.0,5e-05,2]
[311814943,1705429080840,378.30889129,5e-05,2]
[311814944,1705429082720,5190.29776533,5e-05,2]
[311814945,1705429082878,235.79469252,5e-05,2]
[311814946,1705429083338,284.18685088,5e-05,2]
[311814947,1705429085842,15701.67485694,5e-05,2]
[311814948,1705429086426,155.0,5e-05,2]
[311814949,1705429086910,292.05499422,5e-05,2]
[311814950,1705429088681,730.66371542,0.00021,2]
[311814951,1705429089142,155.0,5e-05,2]
[311814952,1705429090190,621.82710502,0.00021781,2]
[311814953,1705429092809,544.11161391,0.000145,2]
[311814954,1705429092952,6082.51022323,5e-05,2]
[311814955,1705429097424,155.0,5e-05,2]
[311814956,1705429097603,5190.29776533,5e-05,2]
[311814957,1705429097912,3123.01195947,0.00021555,2]
[311814958,1705429100604,452.23219098,0.00018151,2]
[311814959,1705429101449,284.18685088,5e-05,2]
[311814960,1705429104406,155.0,5e-05,2]
[311814961,1705429107786,155.0,5e-05,2]
[311814962,1705429108003,15701.67485694,5e-05,2]
[311814963,1705429108279,621.82710502,0.00021781,2]
[311814964,1705429109071,292.05499422,5e-05,2]
[311814965,1705429110684,730.66371542,0.00021,2]
[311814966,1705429111043,6082.51022323,5e-05,2]
[311814967,1705429112631,544.11161391,0.000145,2]
[311814968,1705429113970,155.0,5e-05,2]
[311814969,1705429115550,3125.43380734,0.00021555,2]
[311814970,1705429117374,284.18685088,5e-05,2]
[311814971,1705429120643,360.75913577,0.00018151,2]
[311814972,1705429122410,155.0,5e-05,2]
[311814973,1705429122570,5190.29776533,5e-05,2]
[311814974,1705429126200,621.82710502,0.00021781,2]
[311814975,1705429127566,15701.67485694,5e-05,2]
[311814976,1705429129193,292.05499422,5e-05,2]
[311814977,1705429129491,155.0,5e-05,2]
[311814978,1705429132643,544.11161391,0.000145,2]
[311814979,1705429132919,6082.51022323,5e-05,2]
[311814980,1705429133959,155.0,5e-05,2]
[311814981,1705429135286,284.18685088,5e-05,2]
[311814982,1705429136674,730.66371542,0.00021,2]
[311814983,1705429136702,5190.29776533,5e-05,2]
[311814984,1705429138412,305.01098449,5e-05,2]
[311814985,1705429139966,3125.43380734,0.00021555,2]
[311814986,1705429140731,360.81463435,0.00018151,2]
[311814987,1705429143742,464.470261,0.00021895,2]
[311814988,1705429144196,621.82710502,0.00021575,2]
[311814989,1705429147579,15701.67485694,5e-05,2]
[311814990,1705429147958,155.0,5e-05,2]
[311814991,1705429149093,155.0,5e-05,2]
[311814992,1705429150919,572.27748,0.000145,2]
[311814993,1705429152702,5190.29776533,5e-05,2]
[311814994,1705429153297,280.19214507,5e-05,2]
[311814995,1705429155254,6082.51022323,5e-05,2]
[311814996,1705429155282,292.05499422,5e-05,2]
[311814997,1705429156688,730.66371542,0.00021,2]
[311814998,1705429157548,1812.06513757,0.00021349,2]
[311814999,1705429164585,621.82710502,0.00021574,2]
[311815000,1705429164951,175.32,0.00016712,2]
[311815001,1705429167090,155.0,5e-05,2]
[311815002,1705429168689,2938.0261057,5e-05,2]
[311815003,1705429168925,6072.13932699,5e-05,2]
[311815004,1705429169578,12197.60705279,5e-05,2]
[311815005,1705429169986,225.6188395,5e-05,2]
[311815006,1705429170911,292.05499422,5e-05,2]
[311815007,1705429174679,407.0211133,0.00021,2]
[311815008,1705429180200,621.82710502,0.00021574,2]
[311815009,1705429181840,609.73073587,0.00021349,2]
[311815010,1705429182361,402.21784825,0.00020709,2]
[311815011,1705429182707,1678.68472545,0.00021136,2]
[311815012,1705429183595,155.0,0.00021349,2]
[311815013,1705429183724,155.0,0.00021349,2]
[311815014,1705429184881,1598.92940259,0.00017079,2]
[311815015,1705429184908,1022.79526043,0.00021349,2]
[311815016,1705429185258,542.60062283,0.00021349,2]
[311815017,1705429186494,155.0,0.00021349,2]
[311815018,1705429186914,292.05499422,0.00021349,2]
[311815019,1705429187482,155.0,0.00021349,2]
[311815020,1705429187531,856.6984896,0.00021349,2]
[311815021,1705429187671,533.16554962,0.00021349,2]
[311815022,1705429189372,18963.38582676,0.00021349,2]
[311815023,1705429189641,846.45314719,0.00021349,2]
[311815024,1705429189853,1070.43397792,0.00021999,2]
[311815025,1705429189943,1097.3241355,0.00021349,2]
[311815026,1705429189971,884.97645784,0.00021349,2]
[311815027,1705429192608,155.0,0.00021999,2]
[311815028,1705429192704,361.08411547,0.00021349,2]
[311815029,1705429192999,155.0,0.00021999,2]
[311815030,1705429193319,230.51969982,0.00021999,2]
[311815031,1705429194811,532.30167697,0.00021349,2]
[311815032,1705429194855,1363.30900419,0.00021999,2]
[311815033,1705429195125,7422.95019853,0.00021349,2]
[311815034,1705429195578,523.80886739,0.00021999,2]
[311815035,1705429195824,1893.59742806,0.00021349,2]
[311815036,1705429195852,609.73073587,0.00021349,2]
[311815037,1705429196337,402.21784825,0.00020709,2]
[311815038,1705429196417,1033.17163863,0.00021349,2]
[311815039,1705429196887,1022.79526043,0.00021349,2]
[311815040,1705429197245,247.06404064,0.00021999,2]
[311815041,1705429197765,248.66279264,0.00021999,2]
[311815042,1705429198147,215.48008362,0.00021999,2]
[311815043,1705429198191,621.82710502,0.0002112,2]
[311815044,1705429199109,155.0,0.00021349,2]
[311815045,1705429199734,155.0,0.00021349,2]
[311815046,1705429200348,3328.19103668,0.00021999,2]
[311815047,1705429200531,155.24335567,0.00021349,2]
[311815048,1705429201020,527.73969193,0.00021999,2]
[311815049,1705429201576,533.16554962,0.00021349,2]
[311815050,1705429202948,324.87877909,0.00021999,2]
[311815051,1705429203255,282.6949245,0.00021349,2]
[311815052,1705429205522,1598.92940259,0.00017079,2]
[311815053,1705429205655,856.6984896,0.00021349,2]
[311815054,1705429205941,884.97645784,0.00021349,2]
[311815055,1705429207431,18963.38582676,0.00021349,2]
[311815056,1705429208930,292.05499422,0.00021349,2]
[311815057,1705429209174,155.0,0.00021349,2]
[311815058,1705429209697,846.45314719,0.00021349,2]
[311815059,1705429211146,7422.95019853,0.00021349,2]
[311815060,1705429211487,4624.96257004,0.00021999,2]
[311815061,1705429211954,532.30167697,0.00021349,2]
[311815062,1705429212153,215.31582638,0.00021977,2]
[311815063,1705429212706,361.08411547,0.00021349,2]
[311815064,1705429213004,155.0,0.00021999,2]
[311815065,1705429213648,758.72176657,0.00021999,2]
[311815066,1705429213854,1893.59742806,0.00021349,2]
[311815067,1705429213955,1097.3241355,0.00021349,2]
[311815068,1705429214217,598.08422369,0.00021119,2]
[311815069,1705429214365,2516.7103008,0.00021999,2]
[311815070,1705429215066,1022.79526043,0.00021349,2]
[311815071,1705429215263,246.8747364,0.00021779,2]
[311815072,1705429216777,247.74120279,0.00021999,2]
[311815073,1705429217003,402.21784825,0.00020709,2]
[311815074,1705429217394,155.0,0.00021349,2]
[311815075,1705429217448,527.29942673,0.00021999,2]
[311815076,1705429217476,533.16554962,0.00021349,2]
[311815077,1705429217607,523.36013129,0.00021999,2]
[311815078,1705429217778,2474.83010861,0.00021999,2]
[311815079,1705429217833,278.72258334,0.00021349,2]
[311815080,1705429218980,4634.76514214,0.00021999,2]
[311815081,1705429220467,1033.17163863,0.00021349,2]
[311815082,1705429220517,3189.53192439,0.00021999,2]
[311815083,1705429220928,1598.92940259,0.00017599,2]
[311815084,1705429220969,324.65074733,0.00021999,2]
[311815085,1705429221083,155.0,0.00021999,2]
[311815086,1705429222534,295.40555488,0.00020708,2]
[311815087,1705429223978,884.97645784,0.00021349,2]
[311815088,1705429225132,188.44,0.000264,120]
[311815089,1705429225205,155.0,0.00021999,2]
[311815090,1705429225261,282.6949245,0.00021999,2]
[311815091,1705429225370,856.6984896,0.00021999,2]
[311815092,1705429227384,18963.38582676,0.00021999,2]
[311815093,1705429227485,4628.00101411,0.00021999,2]
[311815094,1705429229290,7422.95019853,0.00021999,2]
[311815095,1705429230896,1022.79526043,0.00021999,2]
[311815096,1705429231241,296.85087038,0.00021999,2]
[311815097,1705429231442,846.45314719,0.00021999,2]
[311815098,1705429231957,1097.3241355,0.00021999,2]
[311815099,1705429231992,532.30167697,0.00021999,2]
[311815100,1705429232414,371.08106366,0.00021999,2]
[311815101,1705429232704,361.08411547,0.00021999,2]
[311815102,1705429233017,155.0,0.00021999,2]
[311815103,1705429233641,758.10730013,0.00021999,2]
[311815104,1705429233777,1959.96612884,0.00021339,2]
[311815105,1705429233858,1893.59742806,0.00021999,2]
[311815106,1705429235752,155.0,0.00021999,2]
[311815107,1705429236617,1033.17163863,0.00021999,2]
[311815108,1705429236984,848.0,0.00021999,2]
[311815109,1705429238343,402.21784825,0.00021339,2]
[311815110,1705429238890,1598.92940259,0.00017599,2]
[311815111,1705429239038,4634.76514214,0.00021999,2]
[311815112,1705429239416,533.16554962,0.00021999,2]
[311815113,1705429239881,33366.42341033,0.00021999,2]
[311815114,1705429240475,3189.53192439,0.00021119,2]
[311815115,1705429241170,242.88431625,0.00021999,2]
[311815116,1705429241209,263.23464751,0.00021999,2]
[311815117,1705429242551,294.50957244,0.00021999,2]
[311815118,1705429243391,856.6984896,0.00021999,2]
[311815119,1705429245476,282.6949245,0.00021999,2]
[311815120,1705429246354,370.51852085,0.00021999,2]
[311815121,1705429247395,18963.38582676,0.00021999,2]
[311815122,1705429247645,846.45314719,0.00021999,2]
[311815123,1705429250141,7422.95019853,0.00021999,2]
[311815124,1705429250323,884.97645784,0.00021999,2]
[311815125,1705429250718,361.08411547,0.00021999,2]
[311815126,1705429253116,279.83670264,0.00021999,2]
[311815127,1705429253870,1893.59742806,0.00021999,2]
[311815128,1705429253914,33344.33528995,0.00021999,2]
[311815129,1705429254428,1033.17163863,0.00021999,2]
[311815130,1705429254891,1022.79526043,0.00021999,2]
[311815131,1705429257417,533.16554962,0.00021999,2]
[311815132,1705429257752,189.44894637,0.00021999,2]
[311815133,1705429257956,1097.3241355,0.00021999,2]
[311815134,1705429257986,532.30167697,0.00021999,2]
[311815135,1705429258341,349.87457705,0.00021339,2]
[311815136,1705429258478,3189.53192439,0.00021119,2]
[311815137,1705429259539,1585.20674776,0.00017599,2]
[311815138,1705429261372,856.6984896,0.00021999,2]
[311815139,1705429262013,150.0,0.00021999,2]
[311815140,1705429263309,282.6949245,0.00021999,2]
[311815141,1705429263712,846.45314719,0.00021999,2]
[311815142,1705429264607,265.0,0.00021999,2]
[311815143,1705429267971,884.97645784,0.00021999,2]
[311815144,1705429269056,22602.03380491,0.00021999,2]
[311815145,1705429269157,2996.23750999,0.00021999,2]
[311815146,1705429269418,18963.38582676,0.00021999,2]
[311815147,1705429270906,1022.79526043,0.00021999,2]
[311815148,1705429272530,593.94644387,0.00021999,2]
[311815149,1705429272708,361.08411547,0.00021999,2]
[311815150,1705429273869,1826.69308069,0.00021999,2]
[311815151,1705429274776,193.0422868,0.00021999,2]
[311815152,1705429275481,533.16554962,0.00021999,2]
[311815153,1705429275984,888.82844615,0.00021999,2]
[311815154,1705429277963,532.30167697,0.00021999,2]
[311815155,1705429279652,846.45314719,0.00021999,2]
[311815156,1705429281282,282.6949245,0.00021999,2]
[311815157,1705429281380,856.6984896,0.00021999,2]
[311815158,1705429282487,3189.53192439,0.00021982,2]
[311815159,1705429285975,884.97645784,0.00021999,2]
[311815160,1705429287391,18963.38582676,0.00021999,2]
[311815161,1705429288923,1022.79526043,0.00021999,2]
[311815162,1705429290699,361.08411547,0.00021999,2]
[311815163,1705429292435,527.98278815,0.00021999,2]
[311815164,1705429293435,533.16554962,0.00021999,2]
[311815165,1705429297647,846.45314719,0.00021999,2]
[311815167,1705429301395,856.6984896,0.00021999,2]
[311815168,1705429302932,875.26218304,0.0002176,2]
[311815169,1705429307398,18963.38582676,0.00021999,2]
[311815170,1705429307978,884.97645784,0.00021999,2]
[311815171,1705429308925,1022.79526043,0.00021999,2]
[311815172,1705429309269,282.6949245,0.00021999,2]
[311815173,1705429310705,361.08411547,0.00021999,2]
[311815174,1705429313660,533.16554962,0.00021999,2]
[311815175,1705429317644,846.45314719,0.00021999,2]
[311815176,1705429321377,856.6984896,0.00021999,2]
[311815177,1705429325402,18963.38582676,0.00021999,2]
[311815178,1705429328821,233.31591162,0.00021999,2]
[311815179,1705429329981,461.31271786,0.00021999,2]
[311815180,1705429330350,230.51969982,0.00021999,2]
[311815181,1705429331271,282.6949245,0.00021999,2]
[311815182,1705429331429,533.16554962,0.00021999,2]
[311815183,1705429332520,4245.70602795,0.00021999,2]
[311815184,1705429347820,177.01,0.00020373,2]
[311815185,1705429370251,640.11,0.00021927,2]
[311815186,1705429496096,2381.10001773,0.000219,2]
[311815187,1705429756007,1022.79526043,0.000219,2]
[311815188,1705429756109,753.69765629,0.000219,2]
[311815189,1705429759925,4176.80488539,0.00021999,2]
[311815207,1705429774020,1022.79526043,0.000219,2]
[311815211,1705429789701,155.0,0.00021999,30]
[311815212,1705429790012,704.088908,0.00021999,2]
[311815213,1705429791237,856.6984896,0.00021999,2]
[311815214,1705429792353,1030.40558921,0.00021814,2]
[311815215,1705429792414,10473.6551094,0.00021999,2]
[311815216,1705429796169,811.35362642,0.00021999,2]
[311815217,1705429797244,312.8751174,0.00021999,2]
[311815218,1705429803691,155.0,0.00021999,30]
[311815219,1705429809006,858.67132434,0.00021358,2]
[311815220,1705429809904,1070.43397792,0.00021999,2]
[311815221,1705429811241,357.88786976,0.00021999,2]
[311815222,1705429816959,540.90241761,0.00021999,2]
[311815223,1705429818334,219.44895605,0.00021999,2]
[311815224,1705429821126,282.6949245,0.00021999,2]
[311815225,1705429827682,155.0,0.00021999,30]
[311815226,1705429829073,858.67132434,0.00021734,2]
[311815238,1705429831750,-558.63203499,0.00022,2]
[311815239,1705429831759,-155.0,0.00022,2]
[311815240,1705429831769,-155.87221421,0.00022102,2]
[311815241,1705429831778,-2110.27947957,0.00022499,2]
[311815242,1705429831864,-2551.3316739,0.00022499,2]
[311815243,1705429831876,-614.976,0.00022499,2]
[311815244,1705429832156,450.75201468,0.00021999,2]
[311815273,1705429838339,-1122.62855919,0.00022499,2]
[311815274,1705429838348,-6374.0,0.000225,2]
[311815275,1705429838358,-155.0,0.00022567,2]
[311815276,1705429838367,-153.93371381,0.00022568,2]
[311815277,1705429838378,-150.0,0.00022666,2]
[311815278,1705429838387,-1067.03144868,0.00022667,2]
[311815279,1705429838397,-10466.73057753,0.00022667,2]
[311815280,1705429838407,-22602.03380491,0.00022669,2]
[311815281,1705429838416,-155.0,0.00022689,2]
[311815282,1705429838426,-2778.38766529,0.00022689,2]
[311815283,1705429838435,-242.31099707,0.00022689,2]
[311815284,1705429838444,-155.0,0.00022689,2]
[311815285,1705429838453,-155.0,0.00022689,2]
[311815286,1705429838463,-2018.96995483,0.00022689,2]
[311815287,1705429838472,-233.03383861,0.00022689,2]
[311815288,1705429838481,-155.0,0.00022689,2]
[311815289,1705429838490,-259.9949317,0.00022689,2]
[311815290,1705429838500,-501.09834726,0.00022689,2]
[311815291,1705429838509,-729.88,0.00022693,2]
[311815292,1705429838518,-8357.41,0.00022693,2]
[311815293,1705429838527,-404.01534873,0.00022695,2]
[311815294,1705429838536,-523.43271801,0.00022695,2]
[311815295,1705429838545,-155.0,0.00022695,2]
[311815296,1705429838554,-155.0,0.00022695,2]
[311815297,1705429838564,-5329.76335956,0.00022695,2]
[311815298,1705429838572,-252.77865356,0.00022695,2]
[311815299,1705429838582,-155.0,0.00022695,2]
[311815300,1705429838591,-737.96,0.00022695,2]
[311815301,1705429838600,-709.94,0.00022698,2]
[311815302,1705429838609,-472.92249472,0.00022896,2]
[311815303,1705429838619,-155.0,0.00022896,2]
[311815304,1705429838629,-155.0,0.00022897,2]
[311815305,1705429838638,-250.0,0.000229,2]
[311815306,1705429838647,-229.83,0.000229,2]
[311815307,1705429838657,-460.22252092,0.00023288,4]
[311815308,1705429838666,-208.79490674,0.00023288,4]
[311815309,1705429838676,-168.2748619,0.00023288,4]
[311815310,1705429838686,-232.85,0.00023348,2]
[311815311,1705429838694,-2000.0,0.00023464,2]
[311815312,1705429838703,-369.16,0.00023517,2]
[311815313,1705429838712,-8161.4,0.00023551,2]
[311815314,1705429838721,-614.41,0.00023573,2]
[311815315,1705429838730,-150.0,0.00023626,2]
[311815316,1705429838739,-200.0,0.00023685,2]
[311815317,1705429838748,-200.0,0.00023737,2]
[311815318,1705429838758,-485.36,0.00023786,2]
[311815319,1705429838767,-1359.44,0.00023808,2]
[311815320,1705429838776,-399.54,0.00023817,10]
[311815321,1705429838785,-250.0,0.00023836,2]
[311815322,1705429838794,-2714.39,0.00023954,2]
[311815323,1705429838804,-230.22806031,0.00024263,2]
[311815324,1705429838813,-3664.81051725,0.00024263,2]
[311815325,1705429838822,-201.0574264,0.00024264,2]
[311815326,1705429838831,-5000.0,0.00024264,2]